bitfinex-derivatives/quotes_ETHF0:USTF0_20250505
["timestamp","ask_amount","ask_price","bid_price","bid_amount"]
[1746473075122,3.64930524,1823.1,1823.0,11.68704]
[1746473075326,4.74638524,1823.1,1823.0,11.68704]
[1746473075929,3.64930524,1823.1,1823.0,11.68704]
[1746473076323,4.74638524,1823.1,1823.0,11.68704]
[1746473077230,3.64930524,1823.1,1823.0,11.68704]
[1746473078127,11.26429959,1823.2,1823.1,1.09708]
[1746473078431,5.87457,1823.2,1823.1,2.80618]
[1746473078628,2.66677,1823.2,1823.1,2.80618]
[1746473081233,6.31607524,1823.2,1823.1,2.80618]
[1746473081732,7.13647524,1823.2,1823.1,2.80618]
[1746473084036,3.64930524,1823.2,1823.1,2.80618]
[1746473084426,4.74632524,1823.2,1823.1,2.80618]
[1746473085738,3.64930524,1823.2,1823.1,2.80618]
[1746473086037,4.74632524,1823.2,1823.1,2.80618]
[1746473086545,1.09702,1823.2,1823.1,2.80618]
[1746473087242,6.37918524,1823.3,1823.2,1.09702]
[1746473087537,6.37918524,1823.3,1823.2,2.81782]
[1746473088138,6.37918524,1823.3,1823.2,6.54982]
[1746473091044,11.37918524,1823.3,1823.2,3.732]
[1746473091247,1.09714,1823.0,1822.9,1.0972]
[1746473091743,1.09726,1822.8,1822.7,11.5793725]
[1746473091932,1.09726,1822.8,1822.7,12.6766925]
[1746473092137,1.09726,1822.8,1822.7,18.1052925]
[1746473092435,2.74296,1822.8,1822.7,18.1052925]
[1746473094446,6.39226524,1822.8,1822.7,10.85432]
[1746473095548,5.29500524,1822.8,1822.7,10.85432]
[1746473098045,3.64930524,1822.8,1822.7,10.85432]
[1746473098547,5.59050524,1822.9,1822.8,1.09726]
[1746473098750,5.59050524,1822.9,1822.8,2.71656]
[1746473099044,5.23620524,1822.9,1822.8,2.71656]
[1746473099243,6.33340524,1822.9,1822.8,6.44856]
[1746473100139,5.23620524,1822.9,1822.8,6.44856]
[1746473100439,6.33340524,1822.9,1822.8,6.44856]
[1746473101146,2.6841,1822.9,1822.8,6.44856]
[1746473101647,1.5869,1822.9,1822.8,6.44856]
[1746473101846,2.6841,1822.9,1822.8,6.44856]
[1746473104637,2.6841,1822.9,1822.8,4.82926]
[1746473104948,6.33340524,1822.9,1822.8,4.82926]
[1746473105545,11.33340524,1822.9,1822.8,3.732]
[1746473106247,1.09732,1822.7,1822.6,1.09735]
[1746473106842,2.76172,1822.7,1822.6,1.09735]
[1746473112344,1.6644,1822.7,1822.6,1.09735]
[1746473112547,9.60097847,1822.8,1822.7,1.09732]
[1746473112548,8.73877847,1822.8,1822.7,1.09732]
[1746473112747,10.40227847,1822.8,1822.7,1.09732]
[1746473112949,10.40227847,1822.8,1822.7,2.68082]
[1746473113145,10.40227847,1822.8,1822.7,6.41282]
[1746473114456,6.75241,1822.8,1822.7,6.41282]
[1746473115353,3.54461,1822.8,1822.7,6.41282]
[1746473116452,1.88111,1822.8,1822.7,6.41282]
[1746473117454,1.88106,1822.8,1822.7,6.41282]
[1746473118856,3.54276,1822.8,1822.7,6.41282]
[1746473120659,3.54276,1822.8,1822.7,3.732]
[1746473120856,6.75056,1822.8,1822.7,3.732]
[1746473122762,15.26956,1822.8,1822.7,3.732]
[1746473123162,1.09738,1822.6,1822.5,40.8]
[1746473123363,4.30518,1822.6,1822.5,40.8]
[1746473123758,6.82188,1822.6,1822.5,40.8]
[1746473124261,6.82188,1822.6,1822.5,44.532]
[1746473129064,6.82188,1822.6,1822.5,3.732]
[1746473129264,10.47174847,1822.6,1822.5,3.732]
[1746473132467,4.74724847,1822.6,1822.5,8.03724]
[1746473132669,4.74724847,1822.6,1822.5,8.02064]
[1746473134357,3.64986847,1822.6,1822.5,13.02064]
[1746473135672,1.09733,1822.7,1822.6,1.09738]
[1746473135862,1.09731,1822.8,1822.7,1.09726]
[1746473136172,1.09731,1822.8,1822.7,41.89726]
[1746473137171,1.09731,1822.8,1822.7,45.62926]
[1746473137368,4.74710847,1822.9,1822.8,1.09726]
[1746473137668,4.74710847,1822.9,1822.8,4.46616]
[1746473137968,4.74710847,1822.9,1822.8,3.3689]
[1746473138266,4.74710847,1822.9,1822.8,7.1009]
[1746473138859,4.74710847,1822.9,1822.8,8.19816]
[1746473140069,4.74710847,1822.9,1822.8,7.1009]
[1746473140271,4.74710847,1822.9,1822.8,8.19816]
[1746473140471,6.44060847,1822.9,1822.8,8.19816]
[1746473141170,6.44060847,1822.9,1822.8,7.1009]
[1746473141374,6.44060847,1822.9,1822.8,8.19816]
[1746473144575,4.74710847,1822.9,1822.8,8.19816]
[1746473151583,4.74710847,1822.9,1822.8,48.99816]
[1746473154478,4.74710847,1822.9,1822.8,47.9009]
[1746473154684,8.09780847,1822.9,1822.8,3.732]
[1746473154871,2.74323,1822.8,1822.2,0.8029]
[1746473155075,3.2078,1822.6,1822.3,40.8]
[1746473155277,1.89564,1822.5,1822.4,1.7285]
[1746473155479,3.58254,1822.5,1822.4,1.7285]
[1746473155884,3.58254,1822.5,1822.4,2.826]
[1746473156181,3.58254,1822.5,1822.4,6.558]
[1746473157184,3.58254,1822.5,1822.4,5.4605]
[1746473157787,7.23240847,1822.5,1822.4,5.4605]
[1746473158585,4.74730847,1822.5,1822.4,6.558]
[1746473159390,4.74730847,1822.5,1822.4,5.4605]
[1746473159587,6.31470847,1822.5,1822.4,5.4605]
[1746473160090,6.31470847,1822.5,1822.4,3.732]
[1746473160790,2.66484,1822.5,1822.4,3.732]
[1746473161788,1.0978,1821.9,1821.8,8.3488225]
[1746473161987,1.0978,1821.9,1821.8,10.7621225]
[1746473162185,1.0978,1821.9,1821.8,13.3962725]
[1746473162388,1.0978,1821.9,1821.8,54.1962725]
[1746473162883,3.5735,1821.9,1821.8,54.1962725]
[1746473163090,3.5735,1821.9,1821.8,55.2941425]
[1746473163288,3.5735,1821.9,1821.8,54.1962725]
[1746473164490,6.7813,1821.9,1821.8,51.7829725]
[1746473165393,6.7813,1821.9,1821.8,44.532]
[1746473167490,10.2983,1821.9,1821.8,44.532]
[1746473170494,10.2983,1821.9,1821.8,46.1511]
[1746473172498,6.7813,1821.9,1821.8,46.1511]
[1746473174199,6.7813,1821.9,1821.8,44.532]
[1746473174497,6.7813,1821.9,1821.8,3.732]
[1746473175795,6.7813,1821.9,1821.8,5.4248]
[1746473175998,6.7813,1821.9,1821.8,6.2287]
[1746473176195,6.7813,1821.9,1821.8,7.0817]
[1746473176801,6.7813,1821.9,1821.8,8.17957]
[1746473176802,4.3056,1821.9,1821.8,8.17957]
[1746473177295,4.3056,1821.9,1821.8,7.0817]
[1746473178602,4.3056,1821.9,1821.8,8.17957]
[1746473178799,4.3056,1821.9,1821.8,7.0817]
[1746473181003,4.3056,1821.9,1821.8,8.17957]
[1746473182104,4.3056,1821.9,1821.8,7.0817]
[1746473182403,4.3056,1821.9,1821.8,8.17957]
[1746473183005,4.3056,1821.9,1821.8,7.0817]
[1746473184000,5.8701,1821.9,1821.8,7.0817]
[1746473185308,5.8701,1821.9,1821.8,8.17957]
[1746473185607,5.8701,1821.9,1821.8,7.0817]
[1746473190306,5.8701,1821.9,1821.8,8.17957]
[1746473190498,5.8701,1821.9,1821.8,7.0817]
[1746473191006,5.8701,1821.9,1821.8,8.17957]
[1746473192801,4.3056,1821.9,1821.8,8.17957]
[1746473193407,1.0978,1821.9,1821.8,8.17957]
[1746473194011,10.20817,1822.1,1822.0,1.09774]
[1746473194610,1.09774,1822.0,1821.9,2.75465]
[1746473195203,1.09774,1822.0,1821.9,6.48665]
[1746473197012,6.69113,1822.1,1822.0,1.09774]
[1746473197206,6.69113,1822.1,1822.0,2.70084]
[1746473197613,6.69113,1822.1,1822.0,1.6031]
[1746473198111,6.69113,1822.1,1822.0,5.3351]
[1746473202312,6.69113,1822.1,1822.0,3.732]
[1746473203311,11.69113,1822.1,1822.0,3.732]
[1746473203511,1.09787,1821.8,1821.7,40.8]
[1746473203710,4.30567,1821.8,1821.7,40.8]
[1746473204212,4.30567,1821.8,1821.7,44.532]
[1746473204415,6.76807,1821.8,1821.7,47.35073]
[1746473204918,6.76807,1821.8,1821.7,46.2528]
[1746473205117,3.56027,1821.8,1821.7,47.35073]
[1746473209718,9.0350727,1821.8,1821.7,47.35073]
[1746473210121,9.0350727,1821.8,1821.7,46.2528]
[1746473210419,12.2428727,1821.8,1821.7,46.2528]
[1746473210815,12.2428727,1821.8,1821.7,44.532]
[1746473212516,17.2428727,1821.8,1821.7,3.63191]
[1746473213216,1.09817,1821.3,1821.2,42.4654]
[1746473213411,1.09823,1821.2,1821.1,7.2509725]
[1746473213624,7.79693,1821.2,1821.1,7.2509725]
[1746473213825,1.09829,1821.1,1821.0,7.2509725]
[1746473214124,5.90809,1821.1,1821.0,10.9829725]
[1746473214718,2.70029,1821.1,1821.0,10.9829725]
[1746473214922,5.90809,1821.1,1821.0,10.9829725]
[1746473216319,9.42609,1821.1,1821.0,9.8449225]
[1746473217921,14.89786282,1821.1,1821.0,3.732]
[1746473219623,19.89786282,1821.1,1821.0,3.732]
[1746473219814,14.89786282,1821.1,1821.0,3.732]
[1746473222230,14.89786282,1821.1,1820.6,1.5782]
[1746473222231,1.09853,1820.7,1820.6,1.5782]
[1746473222823,4.30633,1820.7,1820.6,1.5782]
[1746473223025,6.03693,1820.7,1820.6,1.5782]
[1746473224224,1.09847,1820.8,1820.7,1.09853]
[1746473224425,3.2078,1820.9,1820.8,1.09847]
[1746473225026,1.09837,1821.0,1820.9,1.09841]
[1746473225227,1.09837,1821.0,1820.9,2.75051]
[1746473225931,6.17229735,1821.1,1821.0,1.09835]
[1746473226129,5.47177282,1821.1,1821.0,2.75045]
[1746473226324,5.47177282,1821.1,1821.0,7.75045]
[1746473227122,6.57006282,1821.1,1821.0,11.48245]
[1746473227729,5.47177282,1821.1,1821.0,11.48245]
[1746473227919,5.47177282,1821.1,1821.0,52.28245]
[1746473229536,6.57006282,1821.1,1821.0,52.28245]
[1746473230532,1.09829,1821.1,1821.0,52.28245]
[1746473231133,1.09829,1821.1,1821.0,47.28245]
[1746473231834,1.09829,1821.2,1821.1,1.09825]
[1746473232133,1.09829,1821.2,1821.1,2.74215]
[1746473233133,1.09829,1821.2,1821.1,1.6439]
[1746473233335,1.09829,1821.2,1821.1,2.74219]
[1746473234834,1.09823,1821.3,1821.2,1.09823]
[1746473235134,4.30595,1821.4,1821.3,1.09817]
[1746473235534,4.30595,1821.4,1821.3,2.65827]
[1746473235936,3.2078,1821.4,1821.3,2.65827]
[1746473236135,3.2078,1821.4,1821.3,6.39027]
[1746473236433,4.30591,1821.4,1821.3,6.39027]
[1746473237325,1.09811,1821.4,1821.3,6.39027]
[1746473240540,1.1981,1821.5,1821.4,1.09811]
[1746473240731,1.1981,1821.5,1821.4,2.74271]
[1746473241127,1.1981,1821.5,1821.4,6.47471]
[1746473242839,0.1,1821.5,1821.4,6.47471]
[1746473243036,1.19805,1821.5,1821.4,6.47471]
[1746473246343,0.1,1821.5,1821.4,6.47471]
[1746473248043,1.19805,1821.5,1821.4,6.47471]
[1746473249544,0.1,1821.5,1821.4,6.47471]
[1746473249745,1.19805,1821.5,1821.4,6.47471]
[1746473251838,0.1,1821.5,1821.4,6.47471]
[1746473255050,1e-05,1821.5,1821.4,11.47471]
[1746473256056,1e-05,1821.5,1821.4,6.47471]
[1746473262052,1e-05,1821.5,1821.4,11.47471]
[1746473263154,1e-05,1821.5,1821.4,6.47471]
[1746473268659,1e-05,1821.5,1821.4,6.89427716]
[1746473270960,1e-05,1821.5,1821.4,47.69427716]
[1746473273359,1e-05,1821.5,1821.4,47.27471]
[1746473273659,5.00001,1821.5,1821.4,45.63011]
[1746473274066,2.56121,1821.5,1821.4,45.63011]
[1746473279063,8.65926,1821.5,1821.4,45.63011]
[1746473279565,7.56121,1821.5,1821.4,45.63011]
[1746473280263,2.56121,1821.5,1821.4,45.63011]
[1746473280667,1.72831,1821.5,1821.4,47.25571]
[1746473281059,2.51911,1821.5,1821.4,47.25571]
[1746473282566,3.61716,1821.5,1821.4,4.83011]
[1746473283163,3.61716,1821.5,1821.4,45.63011]
[1746473285676,2.51911,1821.5,1821.4,45.63011]
[1746473285860,3.61716,1821.5,1821.4,45.63011]
[1746473287674,8.61716,1821.5,1821.4,44.532]
[1746473289176,3.61716,1821.5,1821.4,44.532]
[1746473290075,3.61716,1821.5,1821.4,45.63011]
[1746473290268,3.61716,1821.5,1821.4,44.532]
[1746473291178,3.61716,1821.5,1821.4,45.63011]
[1746473292378,3.61716,1821.5,1821.4,44.532]
[1746473292679,3.61716,1821.5,1821.4,45.63011]
[1746473292977,3.61716,1821.5,1821.4,44.532]
[1746473293177,7.2493745,1821.5,1821.4,44.532]
[1746473293772,7.2493745,1821.5,1821.4,45.63011]
[1746473294168,7.2493745,1821.5,1821.4,44.532]
[1746473294975,7.2493745,1821.5,1821.4,45.63011]
[1746473299084,7.2493745,1821.5,1821.4,44.532]
[1746473301080,7.2493745,1821.5,1821.4,45.63011]
[1746473301687,3.61716,1821.5,1821.4,45.63011]
[1746473302884,3.61716,1821.5,1821.4,46.46791]
[1746473303888,3.61716,1821.5,1821.4,45.3698]
[1746473304690,3.61716,1821.5,1821.4,46.46791]
[1746473305696,2.82636,1821.5,1821.4,46.46791]
[1746473306285,1.09806,1821.5,1821.4,48.99051]
[1746473308890,1.09806,1821.5,1821.4,47.0334]
[1746473309191,2.76206,1821.5,1821.4,47.0334]
[1746473309592,2.76206,1821.5,1821.4,44.532]
[1746473309791,2.76206,1821.5,1821.4,45.63011]
[1746473310692,2.76206,1821.5,1821.4,47.32661]
[1746473311493,2.76206,1821.5,1821.4,46.2285]
[1746473312397,2.76206,1821.5,1821.4,47.32661]
[1746473312697,6.3942745,1821.5,1821.4,47.32661]
[1746473313795,4.7302745,1821.5,1821.4,47.32661]
[1746473314190,3.6322245,1821.5,1821.4,47.32661]
[1746473314490,4.7302745,1821.5,1821.4,47.32661]
[1746473316695,1.09806,1821.5,1821.4,47.32661]
[1746473318397,6.09806,1821.5,1821.4,2.5632]
[1746473318598,7.81176,1821.5,1821.4,2.5632]
[1746473320301,11.4439745,1821.5,1821.4,2.5632]
[1746473320999,6.4439745,1821.5,1821.4,2.5632]
[1746473324604,3.51209732,1821.5,1821.4,2.5632]
[1746473328497,7.02709732,1821.5,1821.4,2.5632]
[1746473330008,3.51209732,1821.5,1821.4,2.5632]
[1746473330501,7.02709732,1821.5,1821.4,1.08771]
[1746473330703,1.09829,1821.1,1821.0,40.8]
[1746473330905,4.30609,1821.1,1821.0,41.6289]
[1746473331099,4.30609,1821.1,1821.0,45.3609]
[1746473331305,4.30609,1821.1,1821.0,46.9466]
[1746473331508,4.30609,1821.1,1821.0,48.04495]
[1746473333612,1.09829,1821.1,1821.0,48.04495]
[1746473337717,4.74646114,1821.1,1821.0,48.04495]
[1746473338422,4.74646114,1821.1,1821.0,46.9466]
[1746473339421,6.40756114,1821.1,1821.0,46.9466]
[1746473339721,7.24146114,1821.1,1821.0,46.9466]
[1746473340420,4.74646114,1821.1,1821.0,46.9466]
[1746473341720,10.91914784,1821.1,1821.0,46.9466]
[1746473341914,7.2709767,1821.1,1821.0,46.9466]
[1746473342113,7.2709767,1821.1,1821.0,48.04495]
[1746473343619,6.1726867,1821.1,1821.0,48.04495]
[1746473343922,6.1726867,1821.1,1821.0,53.04495]
[1746473344821,3.64480623,1821.2,1821.1,1.09829]
[1746473345021,3.64480623,1821.2,1821.1,2.79689]
[1746473345223,4.74303623,1821.2,1821.1,2.79689]
[1746473345427,3.64480623,1821.2,1821.1,11.00469]
[1746473346124,3.64480623,1821.2,1821.1,6.00469]
[1746473346717,1.09829,1821.1,1821.0,3.732]
[1746473346930,1.09829,1821.1,1821.0,6.1458]
[1746473347228,1.09829,1821.1,1821.0,46.9458]
[1746473347826,2.74949,1821.1,1821.0,46.9458]
[1746473349934,2.74949,1821.1,1821.0,48.04415]
[1746473350234,1.09829,1821.1,1821.0,48.04415]
[1746473350430,1.09829,1821.1,1821.0,46.9458]
[1746473350628,1.09829,1821.1,1821.0,48.04415]
[1746473351135,1.09829,1821.1,1821.0,46.9458]
[1746473351936,5.44348412,1821.1,1821.0,46.9458]
[1746473352234,7.08158412,1821.1,1821.0,46.9458]
[1746473353134,7.08158412,1821.1,1821.0,48.04415]
[1746473353740,5.44348412,1821.1,1821.0,48.04415]
[1746473355142,5.44348412,1821.1,1821.0,46.9458]
[1746473355339,7.01488412,1821.1,1821.0,46.9458]
[1746473356241,7.01488412,1821.1,1821.0,48.04415]
[1746473356438,7.01488412,1821.1,1821.0,46.9458]
[1746473356636,15.52988412,1821.1,1821.0,1.3366]
[1746473356836,10.52988412,1821.1,1821.0,1.3366]
[1746473357136,15.52988412,1821.1,1821.0,1.3366]
[1746473357439,10.52988412,1821.1,1821.0,1.3366]
[1746473357636,9.82949623,1821.1,1821.0,1.3366]
[1746473360835,13.48103228,1821.1,1821.0,1.3366]
[1746473363243,9.96603228,1821.1,1821.0,1.3366]
[1746473363441,8.39463228,1821.1,1821.0,2.43495]
[1746473363838,7.29634228,1821.1,1821.0,3.29205]
[1746473364142,7.99681892,1821.1,1821.0,3.29205]
[1746473364344,9.09510892,1821.1,1821.0,3.29205]
[1746473365937,7.99681892,1821.1,1821.0,3.29205]
[1746473366239,7.99681892,1821.1,1821.0,49.09205]
[1746473366439,7.99681892,1821.1,1821.0,54.25645]
[1746473368144,3.64616975,1821.1,1821.0,49.25645]
[1746473371949,3.64616975,1821.3,1821.2,1.09823]
[1746473372146,3.64616975,1821.3,1821.2,4.83023]
[1746473372750,3.64616975,1821.3,1821.2,45.63023]
[1746473375146,3.64616975,1821.3,1821.2,47.34203]
[1746473375345,4.74433975,1821.3,1821.2,47.34203]
[1746473375546,3.64616975,1821.3,1821.2,47.34203]
[1746473375854,1.09817,1821.3,1821.2,47.34203]
[1746473378553,2.68387,1821.3,1821.2,47.34203]
[1746473379557,2.68387,1821.3,1821.2,45.63023]
[1746473379759,2.68387,1821.3,1821.2,4.83023]
[1746473381556,2.68387,1821.3,1821.2,6.45093]
[1746473381855,8.26941463,1821.4,1821.3,1.09817]
[1746473382052,9.97311463,1821.4,1821.3,2.71887]
[1746473382352,9.97311463,1821.4,1821.3,6.45087]
[1746473385061,4.50386,1821.4,1821.3,6.45087]
[1746473385660,7.71166,1821.4,1821.3,6.45087]
[1746473386360,7.71166,1821.4,1821.3,4.83017]
[1746473391064,7.71166,1821.4,1821.3,6.52387]
[1746473391550,5.15796,1821.4,1821.3,6.52387]
[1746473391750,3.64410654,1821.5,1821.4,1.09811]
[1746473391950,3.64410654,1821.5,1821.4,2.71121]
[1746473392160,3.64410654,1821.5,1821.4,6.44321]
[1746473392359,3.64410654,1821.5,1821.4,48.08941]
[1746473394853,5.30410654,1821.5,1821.4,48.08941]
[1746473396765,3.64410654,1821.5,1821.4,48.08941]
[1746473397367,1e-05,1821.5,1821.4,48.08941]
[1746473400371,1.09806,1821.5,1821.4,46.9913]
[1746473400572,6.82256,1821.5,1821.4,44.532]
[1746473400764,6.82256,1821.5,1821.4,45.63011]
[1746473400967,11.82256,1821.5,1821.4,3.732]
[1746473401167,6.82256,1821.5,1821.4,4.83011]
[1746473401566,6.82256,1821.5,1821.4,45.63011]
[1746473401767,1.72991,1821.5,1821.4,45.63011]
[1746473401960,1.09806,1821.5,1821.4,45.63011]
[1746473402175,1e-05,1821.5,1821.4,45.63011]
[1746473402476,1.71751,1821.5,1821.4,47.34881]
[1746473402678,2.81556,1821.5,1821.4,47.34881]
[1746473402984,1.71751,1821.5,1821.4,47.34881]
[1746473403684,1e-05,1821.5,1821.4,47.34881]
[1746473407782,1e-05,1821.5,1821.4,47.34881]
[1746473421393,1.6627,1822.0,1821.9,1.0978]
[1746473421594,0.8131,1822.0,1821.9,4.6658]
[1746473422184,0.8131,1822.0,1821.9,8.3978]
[1746473423792,0.8131,1822.0,1821.9,11.6056]
[1746473424102,5.32579654,1822.1,1822.0,1.09774]
[1746473424397,1.6817,1822.1,1822.0,3.49454]
[1746473424785,4.76118654,1822.4,1822.3,1.09756]
[1746473424991,5.56748654,1822.4,1822.3,1.09756]
[1746473425201,10.56748654,1822.4,1822.3,4.82956]
[1746473425395,9.46998654,1822.4,1822.3,4.82956]
[1746473426193,11.95518654,1822.4,1822.3,4.82956]
[1746473426604,6.95518654,1822.4,1822.3,4.82956]
[1746473427098,6.93559654,1822.4,1822.3,4.82956]
[1746473428601,3.2915,1822.4,1822.3,4.82956]
[1746473434712,9.389,1822.4,1822.3,3.732]
[1746473435007,9.389,1822.4,1822.3,4.82956]
[1746473436504,4.389,1822.4,1822.3,4.82956]
[1746473442916,3.2915,1822.4,1822.3,4.82956]
[1746473443216,4.389,1822.4,1822.3,4.82956]
[1746473443519,8.03309654,1822.4,1822.3,4.82956]
[1746473449420,6.93559654,1822.4,1822.3,4.82956]
[1746473449617,8.03309654,1822.4,1822.3,4.82956]
[1746473455626,10.55815767,1822.4,1822.3,4.82956]
[1746473456716,10.55815767,1822.4,1822.3,7.22656]
[1746473457022,8.65435767,1822.4,1822.3,7.22656]
[1746473457224,6.16915767,1822.4,1822.3,7.22656]
[1746473457420,7.26665767,1822.4,1822.3,7.22656]
[1746473459026,1.0975,1822.4,1822.3,7.22656]
[1746473459520,1.0975,1822.4,1822.3,4.82956]
[1746473459721,2.7638,1822.4,1822.3,4.82956]
[1746473460229,2.7638,1822.4,1822.3,3.732]
[1746473461128,1.09768,1822.1,1822.0,2.8219]
[1746473461326,4.30548,1822.1,1822.0,1.7242]
[1746473461525,1.09774,1822.0,1821.9,1.09775]
[1746473461728,4.39594,1822.0,1821.9,1.09775]
[1746473462227,4.39594,1822.0,1821.9,3.732]
[1746473462531,12.94094,1822.0,1821.9,3.732]
[1746473462928,12.94094,1822.0,1821.9,1.4925]
[1746473463228,1.09787,1821.8,1821.7,7.33372696]
[1746473463420,1.09787,1821.8,1821.4,41.8981]
[1746473463421,1.09805,1821.5,1821.4,41.8981]
[1746473463621,4.30585,1821.5,1821.4,41.8981]
[1746473464031,4.30585,1821.5,1821.4,40.8]
[1746473464232,5.95115,1821.5,1821.4,45.63011]
[1746473464531,5.95115,1821.5,1821.4,44.532]
[1746473464833,5.95115,1821.5,1821.4,45.63011]
[1746473465330,5.95115,1821.5,1821.4,41.89811]
[1746473466135,5.95115,1821.5,1821.4,44.532]
[1746473469723,5.95115,1821.5,1821.4,45.63011]
[1746473470134,5.95115,1821.5,1821.4,44.532]
[1746473470824,5.95115,1821.5,1821.4,3.732]
[1746473472630,5.95115,1821.5,1821.4,4.83011]
[1746473472934,9.48715,1821.5,1821.4,6.42931]
[1746473473137,6.27935,1821.5,1821.4,6.42931]
[1746473473840,9.48715,1821.5,1821.4,5.3312]
[1746473474140,9.48715,1821.5,1821.4,6.42931]
[1746473477340,9.48715,1821.5,1821.4,5.3312]
[1746473478344,9.48715,1821.5,1821.4,6.42931]
[1746473480649,9.48715,1821.5,1821.4,5.3312]
[1746473481948,9.48715,1821.5,1821.4,6.42931]
[1746473482548,6.27935,1821.5,1821.4,6.42931]
[1746473482849,9.48715,1821.5,1821.4,6.42931]
[1746473484351,9.48715,1821.5,1821.4,5.3312]
[1746473485546,9.48715,1821.5,1821.4,6.42931]
[1746473490552,9.48715,1821.5,1821.4,5.3312]
[1746473491051,9.48715,1821.5,1821.4,6.42931]
[1746473491253,9.48715,1821.5,1821.4,5.3312]
[1746473491654,9.48715,1821.5,1821.4,3.732]
[1746473493848,9.48715,1821.5,1821.4,4.83011]
[1746473494048,9.48715,1821.5,1821.4,5.3302]
[1746473494357,7.84185,1821.5,1821.4,6.42831]
[1746473494660,4.30585,1821.5,1821.4,7.22871]
[1746473503960,1.09805,1821.5,1821.4,7.22871]
[1746473506355,1.09805,1821.5,1821.4,6.1306]
[1746473506760,4.30585,1821.5,1821.4,6.1306]
[1746473507462,4.30585,1821.5,1821.4,7.22871]
[1746473507764,10.46085624,1821.5,1821.4,7.22871]
[1746473508665,10.46085624,1821.5,1821.4,6.1306]
[1746473508859,12.02725624,1821.5,1821.4,6.1306]
[1746473509163,12.02725624,1821.5,1821.4,7.22871]
[1746473511764,20.22329577,1821.5,1821.4,7.22871]
[1746473513168,18.65689577,1821.5,1821.4,7.22871]
[1746473513370,14.35104577,1821.5,1821.4,7.22871]
[1746473515065,7.07800153,1821.5,1821.4,7.22871]
[1746473515270,1.09799,1821.6,1821.5,1.09805]
[1746473515473,1.09799,1821.6,1821.5,2.78095]
[1746473516072,1.09799,1821.6,1821.5,6.51295]
[1746473516272,11.57883424,1821.7,1821.6,1.09799]
[1746473516473,8.37103424,1821.7,1821.6,3.60029]
[1746473517468,7.27304424,1821.7,1821.6,3.60029]
[1746473517864,8.37097424,1821.7,1821.6,3.60029]
[1746473518675,7.26847796,1821.7,1821.6,3.60029]
[1746473519474,6.17054796,1821.7,1821.6,3.60029]
[1746473519773,7.26847796,1821.7,1821.6,3.60029]
[1746473520372,7.26847796,1821.7,1821.6,1.6829]
[1746473520572,1.09799,1821.6,1821.5,4.83]
[1746473520768,2.76499,1821.6,1821.5,6.5366]
[1746473522082,1.667,1821.6,1821.5,6.5366]
[1746473522975,2.76499,1821.6,1821.5,6.5366]
[1746473523675,2.76499,1821.6,1821.5,4.83]
[1746473523873,4.43729,1821.6,1821.5,3.732]
[1746473524073,12.95829,1821.6,1821.5,3.732]
[1746473524279,1.09829,1821.1,1820.9,12.52826272]
[1746473524580,4.30609,1821.1,1820.9,10.91176272]
[1746473524776,9.30609,1821.1,1820.9,10.91176272]
[1746473525278,11.01739,1821.1,1820.9,10.91176272]
[1746473526078,6.01739,1821.1,1821.0,11.06572696]
[1746473526480,6.01739,1821.1,1821.0,3.732]
[1746473529280,6.01739,1821.1,1821.0,3.732]
[1746473530784,6.71761306,1821.1,1821.0,3.732]
[1746473533091,1.09847,1820.8,1820.7,40.8]
[1746473533591,3.2078,1820.9,1820.8,1.09847]
[1746473533788,0.70022306,1821.1,1821.0,1.09835]
[1746473534093,0.70022306,1821.1,1821.0,4.83035]
[1746473534490,0.70022306,1821.1,1821.0,6.39335]
[1746473535388,1.79851306,1821.1,1821.0,6.39335]
[1746473536294,0.70022306,1821.1,1821.0,6.39335]
[1746473537597,9.2834617,1821.2,1821.1,1.09829]
[1746473537799,10.3816917,1821.2,1821.1,2.73439]
[1746473544908,9.2834617,1821.2,1821.1,2.73439]
[1746473545509,6.74533,1821.2,1821.1,2.73439]
[1746473547713,6.74533,1821.2,1821.1,43.53439]
[1746473556626,6.74052575,1821.2,1821.1,43.53439]
[1746473557231,3.2078,1821.2,1821.1,43.53439]
[1746473557526,4.30603,1821.2,1821.1,43.53439]
[1746473557729,4.30603,1821.2,1821.1,42.4361]
[1746473557928,6.03153,1821.2,1821.1,43.53439]
[1746473558124,6.03153,1821.2,1821.1,42.4361]
[1746473558325,2.82373,1821.2,1821.1,42.4361]
[1746473558629,6.03153,1821.2,1821.1,43.53439]
[1746473559833,6.03153,1821.2,1821.1,42.4361]
[1746473560526,6.03153,1821.2,1821.1,43.53439]
[1746473560831,6.03153,1821.2,1821.0,3.732]
[1746473561025,2.76619,1821.1,1821.0,3.732]
[1746473561225,4.41373,1821.1,1820.7,1.0985]
[1746473561524,1.09847,1820.8,1820.7,41.8985]
[1746473562230,4.30627,1820.8,1820.7,3.732]
[1746473562730,5.97417,1820.8,1820.7,3.732]
[1746473563129,1.09865,1820.5,1820.4,43.60709]
[1746473563730,1.09865,1820.5,1820.4,42.5084]
[1746473563931,2.69325,1820.5,1820.4,42.5084]
[1746473564133,2.69325,1820.5,1820.4,46.2404]
[1746473564334,2.69325,1820.5,1820.4,47.33911]
[1746473565937,2.69325,1820.5,1820.4,46.2404]
[1746473568745,2.69325,1820.5,1820.4,44.532]
[1746473568944,7.69325,1820.5,1820.4,2.47643]
[1746473569243,1.09895,1820.0,1819.9,2.56609924]
[1746473569432,1.09895,1820.0,1819.9,43.36609924]
[1746473569833,2.75075,1820.0,1819.9,43.36609924]
[1746473570134,1.09895,1820.0,1819.9,47.09809924]
[1746473570541,1.09895,1820.0,1819.9,48.19710924]